Workbook

Sheet Topics
A1: Textbook | B1: Chapter 3 Topics:
A2: Section 2.1 | B2: What Is A Percent
A3: Section 2.1 | B3: Ways To Enter Percents In Excel
A4: Section 2.1 | B4: Rules For Percents
A5: Section 2.1 | B5: Conversions: Write A Decimal As A Percent
A6: Section 2.1 | B6: Conversions: Write A Percent As A Decimal
A7: Section 2.1 | B7: Conversions: Write A Fraction As A Percent
A8: Section 2.1 | B8: Conversions: Write A Percent As A Fraction
A9: Section 2.1 | B9: Conversions: Write A Fractional Percent As A Number
A10: Section 2.2 | B10: Part = Base * Rate
A11: Section 2.3 | B11: Base = Part/Rate
A12: Section 2.4 | B12: Rate = Part/Base

Sheet Rules

Sheet Entering Percents
A1: What is percent, Really?
A2: Parts | B2: 2
A3: Whole / Total / Base | B3: 100
A4: =B2&" out of "&B3&CHAR(10)&" = "&B2&"/"&B3 -> 2 out of 100 = 2/100 | C4: or
A6: Convert Decimal To Percent "By Hand" Rules:
A7: Step 1: | B7: Multiply Decimal by 100 (or slide decimal 2 places to right)
A8: Step 2: | B8: Add a % symbol
A10: Step 0: | B10: 0.02
A11: Step 1: | B11: .02*100 = 2 | D11: <<== As soon as we do this step in the by
A12: Step 2: | B12: 2% | D12: hand, we lose the original number: 2 does not
D13: equal 0.02
A14: In Excel, we just type the decimal (number) in the cell and use the Percent Number Format
A15: Try it: | E15: General: | F15: Ctrl + Shift = ~
F16: Ctrl + Shift = `
A17: 0.02 will display as 2.00%, but the 0.02 is still in the cell
A18: Be careful of this: | D18: Invoice | E18: Tax1 | F18: Tax2
A19: Try it:
A21: 2 will display as 200.00%: Not What You Want
A23: Formula evaluate this formula to see that Excel sees decimal underneath formatting, not the percent formatted representation | C23: =(100+300)*2% -> 8
A25: Situation 1: | B25: Type .02 in cell, then add % format
A26: Situation 2: | B26: Type 2 in cell, then add % format
A27: Situation 3: | B27: Add % format, then type 2, Enter
A28: Situation 4: | B28: Add % format, then type .02, Enter
A29: Situation 5: | B29: Add % format as you type
A30: Situation 6: | B30: Type .025, then add % from ribbon
C32: 100

Sheet Entering Percents (an)
A1: What is percent, Really?
A2: Parts | B2: 2
A3: Whole / Total / Base | B3: 100
A4: =B2&" out of "&B3&CHAR(10)&" = "&B2&"/"&B3 -> 2 out of 100 = 2/100 | B4: =B2/B3 -> 0.02 | C4: or | D4: =B2/B3 -> 0.02
A6: Convert Decimal To Percent "By Hand" Rules:
A7: Step 1: | B7: Multiply Decimal by 100 (or slide decimal 2 places to right)
A8: Step 2: | B8: Add a % symbol
A10: Step 0: | B10: 0.02 | C10: 0.02
A11: Step 1: | B11: .02*100 = 2 | C11: =C10*100 -> 2 | D11: <<== As soon as we do this step in the by
A12: Step 2: | B12: 2% | C12: 2% | D12: hand, we lose the original number: 2 does not
D13: equal 0.02
A14: In Excel, we just type the decimal (number) in the cell and use the Percent Number Format
A15: Try it: | E15: General: | F15: Ctrl + Shift = ~
A16: 0.02 | C16: 0.02 | F16: Ctrl + Shift = `
A17: 0.02 will display as 2.00%, but the 0.02 is still in the cell
A18: Be careful of this: | D18: Invoice | E18: Tax1 | F18: Tax2
A19: Try it: | D19: 200 | E19: =D19*A16 -> 4 | F19: =D19*A20 -> 400
A20: 2 | C20: 2
A21: 2 will display as 200.00%: Not What You Want
A23: Formula evaluate this formula to see that Excel sees decimal underneath formatting, not the percent formatted representation | C23: =(100+300)*2% -> 8
A25: Situation 1: | B25: Type .02 in cell, then add % format | C25: 0.02
A26: Situation 2: | B26: Type 2 in cell, then add % format | C26: 2
A27: Situation 3: | B27: Add % format, then type 2, Enter | C27: 0.02
A28: Situation 4: | B28: Add % format, then type .02, Enter | C28: 0.02
A29: Situation 5: | B29: Add % format as you type | C29: 0.025
A30: Situation 6: | B30: Type .025, then add % from ribbon | C30: 0.025
C32: 100
C33: =C32*C30 -> 2.5

Sheet Conversions
A1: Go From Decimal To Percent:
A2: Decimal | B2: Formatted Symbolic Representation of Decimal Number
A3: 0.06
A4: 0.005
A5: 0.062
A7: Go From Percent To Decimal:
A8: Decimal | B8: Formatted Symbolic Representation of Decimal Number | D8: General N. F.
B9: 0.0075 | D9: Ctrl + Shift + ~
B10: 0.25
A12: Go From Fraction To Percent:
A13: Percent | B13: Fraction
B14: =1/2 -> 0.5
B15: =1/3 -> 0.3333333333
A17: Go From Mixed Number To Percent: 2 1/2 ==> 250.00%
A18: Percent | B18: Mixed Number
B19: =2+1/2 -> 2.5
A21: Go From Percent To Fraction:
A22: Percent | B22: Fraction
B23: 0.12
A25: Go From Fractional Percent To a Fraction:
A26: Fraction | B26: Fractional %
B27: 0.0075
A29: End of Section 3.1

Sheet Conversions (an)
A1: Go From Decimal To Percent:
A2: Decimal | B2: Formatted Symbolic Representation of Decimal Number
A3: 0.06 | B3: 0.06 | G3: 10000
A4: 0.005 | B4: 0.005
A5: 0.062 | B5: 0.062
A7: Go From Percent To Decimal:
A8: Decimal | B8: Formatted Symbolic Representation of Decimal Number | D8: General N. F.
A9: 0.0075 | B9: 0.0075 | D9: Ctrl + Shift + ~
A10: 0.25 | B10: 0.25
A12: Go From Fraction To Percent:
A13: Percent | B13: Fraction
A14: =1/2 -> 0.5 | B14: =1/2 -> 0.5
A15: =1/3 -> 0.3333333333 | B15: =1/3 -> 0.3333333333
A16: =1/3 -> 0.3333333333
A17: Go From Mixed Number To Percent: 2 1/2 ==> 250.00%
A18: Percent | B18: Mixed Number
A19: =2+1/2 -> 2.5 | B19: =2+1/2 -> 2.5
A21: Go From Percent To Fraction:
A22: Percent | B22: Fraction
A23: 0.12 | B23: 0.12
A25: Go From Fractional Percent To a Decimal:
A26: Percent | B26: Fraction
A27: =3/400 -> 0.0075 | B27: 0.0075
A29: End of Section 3.1

Sheet Rounding %
A1: Decimal | B1: convert | C1: %
A2: 0.0125 | B2: ==>> | E2: <<== If someone says, "round percentage to the nearest tenth" or
E3: "round to the nearest tenth of a percent"
A5: You look at the percent:
C6: <<== The 2 is in the tenth position
A8: so this becomes:
A12: But if you use the ROUND function, and formulas don't look at
A13: formatting, you must consider the underlying number:
C15: <<== The 2 is in the thousandths position in the underlying number 0.0125
A18: Instructions: Round to the nearest percent
C19: <<== %
C20: << == Decimal
C21: <<== use ROUND
A23: Instructions: Round to the hundredth of a percent
C24: <<== %
C25: << == Decimal
C26: <<== use ROUND

Sheet Rounding % (an)
A1: Decimal | B1: convert | C1: %
A2: 0.0125 | B2: ==>> | C2: =A2 -> 0.0125 | E2: <<== If someone says, "round percentage to the nearest tenth" or
E3: "round to the nearest tenth of a percent"
A5: You look at the percent:
A6: 0.0125 | C6: <<== The 2 is in the tenth position
A8: so this becomes:
A10: 0.013
A12: But if you use the ROUND function, and formulas don't look at
A13: formatting, you must consider the underlying number:
A15: 0.0125 | B15: =A15 -> 0.0125 | C15: <<== The 2 is in the thousandths position in the underlying number 0.0125
A16: =ROUND(A15,3) -> 0.013
A18: Instructions: Round to the nearest percent
A19: 0.055 | C19: <<== %
A20: =A19 -> 0.055 | C20: << == Decimal
A21: =ROUND(A19,2) -> 0.06 | C21: <<== use ROUND
A23: Instructions: Round to the hundredth of a percent
A24: 0.01455 | B24: 0.0146 | C24: <<== %
A25: =A24 -> 0.01455 | C25: << == Decimal
A26: =ROUND(A24,4) -> 0.0146 | C26: <<== use ROUND

Sheet P=BR
A1: If your total earnings were $750 and the tax rate was 12%, what is the tax paid?
A21: If last year’s sales were $500,000 and this year’s sales were 110% of last year’s sales, how much are this year’s sales?

Sheet P=BR (an)
A1: If your total earnings were $750 and the tax rate was 12%, what is the tax paid?
A2: Step 1:
A3: Total Earnings | B3: 750 | C3: Base
A4: Tax Rate | B4: 0.12 | C4: Rate
A5: Tax Paid | B5: ?? | C5: Part
A6: Goal: Calculate Tax Paid
A8: Step 2:
A9: =A3 -> Total Earnings | B9: =B3 -> 750 | D9: Base * Rate = Part
A10: =A4 -> Tax Rate | B10: =B4 -> 0.12
A11: Tax Paid | B11: =B9*B10 -> 90
A13: Step 3:
A14: If our earnings were $750 and the tax rate was 12%, our tax paid was $90.
A21: If last year’s sales were $500,000 and this year’s sales were 110% of last year’s sales, how much are this year’s sales?
A22: Step 1:
A23: Last Year's Sales | B23: 500000 | C23: Base | D23: Starting Point
A24: This year's sales as a % of last year's sales | B24: 1.1 | C24: Rate | D24: %*Last Year's Sales = This years Sales
A25: This Year's Sales | B25: ??? | C25: Part
A26: Goal: Calculate This Year's Sales
A28: Step 2:
A29: =A23 -> Last Year's Sales | B29: =B23 -> 500000 | C29: =C23 -> Base
A30: =A24 -> This year's sales as a % of last year's sales | B30: =B24 -> 1.1 | C30: Rate
A31: =A25 -> This Year's Sales | B31: =B30*B29 -> 550000 | C31: Part
A33: Step 3:
A34: If last year's sales were $500,000 and this year's sales were 110% of last year's sales, then this years sales are $550,000.

Sheet Part
A1: The Pop Advertising Institute says that 55% of all supermarket shoppers have a written list of their needs. If there are 3,680 shoppers entering the supermarket that you manage in one day, what number of shoppers would you expect to have a written shopping list?

Sheet Part (an)
A1: The Pop Advertising Institute says that 55% of all supermarket shoppers have a written list of their needs. If there are 3,680 shoppers entering the supermarket that you manage in one day, what number of shoppers would you expect to have a written shopping list?
A2: Step 1:
A3: % of Shoppers who have a list | B3: 0.55 | C3: Rate
A4: All Shoppers In One Day | B4: 3360 | C4: Base
A5: # Shoppers you expect to have list | B5: ??? | C5: Part
A6: Goal: Calculate # Shoppers you expect to have list
A8: Step 2: | D8: Check:
A9: =A3 -> % of Shoppers who have a list | B9: =B3 -> 0.55 | C9: =C3 -> Rate | D9: Rate 2 | E9: =1-B9 -> 0.45
A10: =A4 -> All Shoppers In One Day | B10: =B4 -> 3360 | C10: =C4 -> Base | D10: Part 2 | E10: =B10*E9 -> 1512
A11: # Shoppers you expect to have list | B11: =B10*B9 -> 1848 | C11: Part | D11: Total | E11: =E10+B11 -> 3360
A13: Step 3:
A14: If we assume that 55% of shoppers have a list, then if we have 3,680 shoppers in our store in one day, we would estimate that 1,848 of them had a shopping list.
A18: End of Section 3.2

Sheet Base
A1: If your payroll deductions (tax) paid was $90 and the tax rate was 12%, what was the gross pay for the paycheck?
A2: Step 1:
A8: Step 2:
A13: Step 3:
A17: 18 1/2% of ____?______ circuits is 370 circuits?
A18: Step 1:
A24: Step 2:
A29: Step 3:
A32: Ren Hoke earns a monthly interest rate of 1/2%. If he earned $251 in interest for the month, what was the amount invested for the month?
A33: Step 1:
A39: Step 2:
A44: Step 3:
A47: End of Section 3.3

Sheet Base (an)
A1: If your payroll deductions (tax) paid was $90 and the tax rate was 12%, what was the gross pay for the paycheck?
A2: Step 1:
A3: Tax Paid | B3: 90 | C3: Part
A4: Tax Rate | B4: 0.12 | C4: Rate
A5: Gross Pay | B5: ?? | C5: Base
A6: Formula: B = P/R
A7: Goal: Solve for Gross Pay (Base)
A8: Step 2:
A9: =A3 -> Tax Paid | B9: =B3 -> 90 | D9: Check:
A10: =A4 -> Tax Rate | B10: =B4 -> 0.12 | D10: P = B * R
A11: Gross Pay | B11: =B9/B10 -> 750 | D11: =B11*B10 -> 90
A13: Step 3:
A14: If the tax paid was $90 and the tax rate was 12%, then the Gross Pay would be $750.
A17: 18 1/2% of ____?______ circuits is 370 circuits?
A18: Step 1:
A19: 18 1/2% * (?? Circuits ) = 370 Circuits | D19: 18.5 | E19: 0.185
A20: Rate | B20: 0.185
A21: Base Circuits | B21: ??
A22: Part Circuits | B22: 370
A23: Formula: B = P/R | B23: Goal: Calculate Base Circuits
A24: Step 2:
A25: =A20 -> Rate | B25: =B20 -> 0.185 | D25: Check:
A26: =A21 -> Base Circuits | B26: =B27/B25 -> 2000 | D26: P = B * R
A27: Part Circuits | B27: =B22 -> 370 | D27: =B25*B26 -> 370
A29: Step 3:
A30: The Base Number of Circuits is 2000, given that the part was 370 and the rate was 18 1/2%.
A32: Ren Hoke earns a monthly interest rate of 1/2%. If he earned $251 in interest for the month, what was the amount invested for the month?
A33: Step 1:
A34: Monthly Interest Rate | B34: 0.005 | D34: 1/2 | E34: 0.5 | F34: 0.005
A35: Monthly Interest Earned | B35: 251
A36: Amount invested for Month | B36: ??
A37: Formula: B = P/R
A38: Goal: Find amount invested for month
A39: Step 2:
A40: =A34 -> Monthly Interest Rate | B40: =B34 -> 0.005 | D40: Check
A41: =A35 -> Monthly Interest Earned | B41: =B35 -> 251 | D41: P = R * B
A42: Amount invested for Month | B42: =B41/B40 -> 50200 | D42: =B42*B40 -> 251
A44: Step 3:
A45: Ren had $50,200 invested for the month, given that he earned a rate of 1/2% and interest of $251.
A47: End of Section 3.3

Sheet Rate
A1: If Suix Radcoolinator earned $27.25 in interest for the quarter and she had $1362.50 invested for the quarter, what was the quarterly interest rate?
A2: Step 1:
A8: Step 2:
A13: Step 3:
A16: Barbara's Antiquary says that of its 3800 items in inventory, 3344 are just plain junk, while the rest are antiques. What percent of the total inventory is antiques?
A17: Step 1:
A23: Step 2:
A28: Step 3:
A31: End of Section 3.4

Sheet Rate (an)
A1: If Suix Radcoolinator earned $27.25 in interest for the quarter and she had $1362.50 invested for the quarter, what was the quarterly interest rate?
A2: Step 1:
A3: Interest earned for the quarter | B3: 27.25 | C3: Part
A4: Amount Invested | B4: 1362.5 | C4: Base
A5: Quarterly interest rate | B5: ??
A6: Formula: R = P/B
A7: Goal: calculate Quarterly Rate
A8: Step 2:
A9: =A3 -> Interest earned for the quarter | B9: =B3 -> 27.25
A10: =A4 -> Amount Invested | B10: =B4 -> 1362.5
A11: Quarterly interest rate | B11: =B9/B10 -> 0.02 | C11: =B11 -> 0.02
A13: Step 3:
A14: Given that we had $1362.50 invested for the quarter and we earned $27.25, the quarterly interest rate was 2%.
A16: Barbara's Antiquary says that of its 3800 items in inventory, 3344 are just plain junk, while the rest are antiques. What percent of the total inventory is antiques?
A17: Step 1:
A18: Total # items in inventory | B18: 3800 | C18: Base
A19: # Items that are junk | B19: 3344 | C19: Part 1
A20: # Items that are antiques | B20: ?? | C20: Part 2
A21: Percent of Antiques | B21: ?? | C21: Rate
A22: Goal: Find Percent of antiques | C22: Formula: R = P/B
A23: Step 2:
A24: =A18 -> Total # items in inventory | B24: =B18 -> 3800 | D24: Check: | E24: Check: | F24: Check:
A25: =A19 -> # Items that are junk | B25: =B19 -> 3344 | D25: B = P/R | E25: % of Junk | F25: B = P/R
A26: # Items that are antiques | B26: =B24-B25 -> 456 | D26: =B26/B27 -> 3800 | E26: =1-B27 -> 0.88 | F26: =B25/E26 -> 3800
A27: Percent of Antiques | B27: =B26/B24 -> 0.12 | C27: =B27 -> 0.12
A28: Step 3:
A29: The percent of antiques in the inventory is 12%.
A31: End of Section 3.4

Sheet RateOfChange (hidden)
A1: New Formulas
A2: Example 1: Rate of Change / Increase Problem
A3: Stock Value Year 1 | B3: 10 | C3: Beg
A4: Stock Value Year 2 | B4: 12.5 | C4: End
A10: New Formulas
A11: Example 2: Rate of Change / Decrease Problem
A12: Stock Value Year 1 | B12: 10 | C12: Beg
A13: Stock Value Year 2 | B13: 7.5 | C13: End

Sheet RateOfChange (an) (hidden)
A1: New Formulas
A2: Example 1: Rate of Change / Increase Problem
A3: Stock Value Year 1 | B3: 10 | C3: Beg
A4: Stock Value Year 2 | B4: 12.5 | C4: End
A5: Rate = Part/Base = End/Beg = | B5: =B4/B3 -> 1.25 | C5: =B5 -> 1.25
A6: Part = Rate*Base = End = Rate*Beg = | B6: =B5*B3 -> 12.5
A7: Amount of Change = AOC = End - Beg = | B7: =B4-B3 -> 2.5
A8: Rate of Change = End/Beg - 1 | B8: =B4/B3-1 -> 0.25 | C8: =B8 -> 0.25
A9: Rate of Change = Rate - 1 | B9: =B5-1 -> 0.25 | C9: =B9 -> 0.25
A10: New Formulas
A11: Example 2: Rate of Change / Decrease Problem
A12: Stock Value Year 1 | B12: 10 | C12: Beg
A13: Stock Value Year 2 | B13: 7.5 | C13: End
A14: Rate = Part/Base = End/Beg = | B14: =B13/B12 -> 0.75 | C14: =B14 -> 0.75
A15: Part = Rate*Base = End = Rate*Beg = | B15: =B14*B12 -> 7.5
A16: Amount of Change = AOC = End - Beg = | B16: =B13-B12 -> -2.5
A17: Rate of Change = End/Beg - 1 | B17: =B13/B12-1 -> -0.25 | C17: =B17 -> -0.25
A18: Rate of Change = Rate - 1 | B18: =B14-1 -> -0.25 | C18: =B18 -> -0.25

Sheet ROC (hidden)
A1: If last years sales were $125,000 and this years sales were $190,000, what is the percentage change from last year to this year?
A3: Step 1: List Variables and details
A10: Step 2: Set up and Solve
A16: Step 3: Write Answer in Words
A19: If last years sales were $125,000 and this years sales were $110,000, what is the percentage change from last year to this year?
A21: Step 1: List Variables and details
A28: Step 2: Set up and Solve
A34: Step 3: Write Answer in Words

Sheet ROC (an) (hidden)
A1: If last years sales were $125,000 and this years sales were $190,000, what is the percentage change from last year to this year?
A3: Step 1: List Variables and details
A4: Last Years Sales | B4: 125000 | C4: Beg
A5: This Years Sales | B5: 190000 | C5: End
A6: Goal: Find % Rate of Change ==> Rate of Change | C6: ROC
A7: Formual 1: Rate = End/Beg
A8: Formula 2: AOC = End - Beg
A9: Formula 3: ROC = End/Beg - 1
A10: Step 2: Set up and Solve
A11: =A7 -> Formual 1: Rate = End/Beg | B11: =B5/B4 -> 1.52 | D11: Check:
A12: =A8 -> Formula 2: AOC = End - Beg | B12: =B5-B4 -> 65000 | D12: Rate -1
A13: =A9 -> Formula 3: ROC = End/Beg - 1 | B13: =B5/B4-1 -> 0.52 | D13: =B11-1 -> 0.52
A14: Check 1: Beg*Rate = End | B14: =B11*B4 -> 190000
A15: Check 2: AOC = ROC*Beg | B15: =B4*B13 -> 65000
A16: Step 3: Write Answer in Words
A17: The percentage change from last year to this year is 52%
A19: If last years sales were $125,000 and this years sales were $110,000, what is the percentage change from last year to this year?
A21: Step 1: List Variables and details
A22: Last Years Sales | B22: 125000 | C22: Beg
A23: This Years Sales | B23: 110000 | C23: End
A24: Goal: Find % Rate of Change ==> Rate of Change | B24: ?? | C24: ROC
A25: Formula 1: Rate = End/Beg
A26: Formula 2: AOC = End - Beg
A27: Formula 3: ROC = End/Beg -1
A28: Step 2: Set up and Solve
A29: =A25 -> Formula 1: Rate = End/Beg | B29: =B23/B22 -> 0.88
A30: =A26 -> Formula 2: AOC = End - Beg | B30: =B23-B22 -> -15000
A31: =A27 -> Formula 3: ROC = End/Beg -1 | B31: =B23/B22-1 -> -0.12 | C31: =B31 -> -0.12
A32: Check 1: End = Rate*Beg | B32: =B29*B22 -> 110000
A33: Check 2: AOC = Beg*ROC = | B33: =B31*B22 -> -15000
A34: Step 3: Write Answer in Words
A35: The percentage change from last year to this year is -12%.

Sheet IncreaseDecrease (hidden)
A1: After spending $3450 for tuition and $4350 for dorm fees, Edgar finds that 35% of his original savings remains. Find the amount of his savings that remain.
A2: Step 1: List Variables and details
A9: Step 2: Set up and Solve
A17: Step 3: Write Answer in Words
A21: The value of Iowa farmland increased 4.3% this year to a statewide average value of $1857 per acre. How much per acre did the Iowa farmland increase this year (Round to the dollar).
A23: Step 1: List Variables and details
A30: Step 2: Set up and Solve
A38: Step 3: Write Answer in Words
A41: Markup
A43: The original price of the Lego set was $10.50. If the markdown was 10%, what was the reduced price?
A45: Step 1: List Variables and details
A51: Step 2: Set up and Solve
A56: Step 3: Write Answer in Words
A60: The original price for the generator before the Seattle storm was $600. After the storm a 20% markup was added. What is the new price?
A62: Step 1: List Variables and details
A68: Step 2: Set up and Solve
A73: Step 3: Write Answer in Words
A77: End of Section 3.5

Sheet IncreaseDecrease (an) (hidden)
A1: After spending $3450 for tuition and $4350 for dorm fees, Edgar finds that 35% of his original savings remains. Find the amount of his savings that remain.
A2: Step 1: List Variables and details
A3: Tuition | B3: 3450
A4: Dorm fees | B4: 4350
A5: Original savings = Beg | B5: ??? | C5: Base
A6: Amount of savings that remain = End | B6: ?? | C6: Part
A7: Goal: Find Amount of savings that remain
A8: Rate = % of savings that remain | B8: 0.35 | C8: Rate
A9: Step 2: Set up and Solve
A10: ROC = Rate - 1 | B10: =E14-1 -> -0.65
A11: AOC = Tuition + Dorm Fee | B11: =-SUM(B3:B4) -> -7800 | C11: Beg | D11: AOC | E11: =B10 -> -0.65 | F11: ROC
A12: Base = Beg = AOC/ROC | B12: =D12/E11 -> 12000 | C12: =B12 -> 12000 | D12: =B11 -> -7800
A13: Part = End = Beg*Rate | B13: =C12*E14 -> 4200
A14: Check 1: End/Rate = Beg | B14: =D15/E14 -> 12000 | D14: End | E14: =B8 -> 0.35 | F14: Rate
D15: =B13 -> 4200
A17: Step 3: Write Answer in Words
A18: Amount of savings that remain is $4,200.
A21: The value of Iowa farmland increased 4.3% this year to a statewide average value of $1857 per acre. How much per acre did the Iowa farmland increase this year (Round to the dollar).
A23: Step 1: List Variables and details
A24: ROC = Increase in property value | B24: 0.043 | C24: ROC
A25: End = Value at end of year | B25: 1857 | C25: End
A26: Goal: AOC = Amount land increased | C26: AOC
A27: ROC = Rate -1
A28: ROC + 1 = Rate
A30: Step 2: Set up and Solve
A31: =A28 -> ROC + 1 = Rate | B31: =E32+1 -> 1.043
A32: Base = Beg = P/R = End/Rate | B32: =B25/B31 -> 1780.441035 | C32: End | E32: =B24 -> 0.043 | F32: ROC | G32: Rate
A33: AOC = End - Beg | B33: =ROUND(B25-B32,0) -> 77 | C33: =B25 -> 1857 | E33: 1 | G33: =E33+E32 -> 1.043
A34: Check 1: End = Beg * Rate | B34: =B32*B31 -> 1857
A38: Step 3: Write Answer in Words
A39: The land increased by $77 (that is given our 4.3% increase)
A41: Markup
A43: The original price of the Lego set was $10.50. If the markdown was 10%, what was the reduced price?
A45: Step 1: List Variables and details
A46: Beg = Original Price | B46: 10.5 | D46: Beg = Base
A47: ROC = Markdown | B47: -0.1 | C47: =B47 -> -0.1 | D47: ROC
A48: Goal: Find reduced Price
A49: Rate = 1 - ROC or 1 + -ROC
A50: End (Part) = Beg * Rate = Base * Rate =
A51: Step 2: Set up and Solve
A52: =A49 -> Rate = 1 - ROC or 1 + -ROC | B52: =1+B47 -> 0.9 | C52: =B52 -> 0.9
A53: =A50 -> End (Part) = Beg * Rate = Base * Rate = | B53: =B46*B52 -> 9.45
A54: check 1: Beg = End/Rate | B54: =B53/B52 -> 10.5
A56: Step 3: Write Answer in Words
A57: The reduced Price is $9.45.
A60: The original price for the generator before the Seattle storm was $600. After the storm a 20% markup was added. What is the new price?
A62: Step 1: List Variables and details
A63: Beg = Original Price = | B63: 600 | C63: Beg
A64: Markup = ROC | B64: 0.2 | C64: =B64 -> 0.2
A65: Goal: Find New Price
A66: Formula 1: Rate = 1 + ROC
A67: End = Beg * Rate = Base * Rate
A68: Step 2: Set up and Solve
A69: =A66 -> Formula 1: Rate = 1 + ROC | B69: =1+B64 -> 1.2 | C69: =C64+1 -> 1.2
A70: =A67 -> End = Beg * Rate = Base * Rate | B70: =B69*B63 -> 720
A71: Check1: Beg = End/Rate = Part/Rate | B71: =B70/B69 -> 600
A73: Step 3: Write Answer in Words
A74: The Marked Up Price is $720.00.
A77: End of Section 3.5

Sheet Stocks (hidden)
A1: My Stocks
A2: Company Name | B2: Stock Symbol | C2: March 1, 2007 Price | D2: Current Price | E2: Rate of Change or % Over Period | G2: Check
A3: Amazom.com | B3: AMZN | C3: 38.85
A4: Krispy Kreme | B4: KKD | C4: 10.25
A5: McDonald's | B5: MCD | C5: 44.1
A6: Merck | B6: MRK | C6: 43.99
A7: Citigroup | B7: C | C7: 51.08
A8: Microsoft | B8: MSFT | C8: 28.09
A9: Bank of America | B9: BAC | C9: 50.38
A10: Pepsi Bottling | B10: PBG | C10: 31.12
A11: Wal-Mart | B11: WMT | C11: 47.89
A12: Yahoo | B12: YHOO | C12: 30.86

Sheet Stocks (an) (hidden)
A1: My Stocks
A2: Company Name | B2: Stock Symbol | C2: March 1, 2007 Price | D2: Current Price | E2: Rate of Change or % Over Period | G2: Check
A3: Amazom.com | B3: AMZN | C3: 38.85 | D3: =D17 -> 246.71 | E3: =D3/C3-1 -> 5.35032175 | G3: =(D3-C3)/C3 -> 5.35032175
A4: Krispy Kreme | B4: KKD | C4: 10.25 | D4: =D18 -> 7.16 | E4: -0.3014634146 | G4: =(D4-C4)/C4 -> -0.3014634146
A5: McDonald's | B5: MCD | C5: 44.1 | D5: 89.94 | E5: 1.039455782 | G5: 1.039455782
A6: Merck | B6: MRK | C6: 43.99 | D6: 32.98 | E6: -0.2502841555 | G6: -0.2502841555
A7: Citigroup | B7: C | C7: 51.08 | D7: 28.4 | E7: -0.444009397 | G7: -0.444009397
A8: Microsoft | B8: MSFT | C8: 28.09 | D8: 27.27 | E8: -0.02919188323 | G8: -0.02919188323
A9: Bank of America | B9: BAC | C9: 50.38 | D9: 6.19 | E9: -0.8771337832 | G9: -0.8771337832
A10: Wal-Mart | B10: WMT | C10: 47.89 | D10: 55.46 | E10: 0.1580705784 | G10: 0.1580705784
A11: Yahoo | B11: YHOO | C11: 30.86 | D11: 15.91 | E11: -0.4844458846 | G11: -0.4844458846
A14: Stock Quotes Provided by MSN Money
A15: Click here to visit MSN Money
D16: Last | E16: Previous Close | F16: High | G16: Low | H16: Volume | I16: Change | J16: % Change | K16: 52 Wk High | L16: 52 Wk Low | M16: Market Cap | N16: EPS | O16: P/E Ratio | P16: # Shares Out
A17: Amazon.com Inc | B17: Chart | C17: News | D17: 246.71 | E17: 246.71 | F17: 0 | G17: 0 | H17: 39685 | I17: unch | J17: 0 | K17: 246.71 | L17: 156.57 | M17: 111990380911 | N17: 2.27 | O17: 108.8 | P17: 453935300
A18: Krispy Kreme Doughnuts Inc | B18: Chart | C18: News | D18: 7.16 | E18: 7.16 | F18: 0 | G18: 0 | H18: 700 | I18: unch | J18: 0 | K18: 10.08 | L18: 5.06 | M18: 486393324 | N18: 0.26 | O18: 27 | P18: 67932030
A19: McDonald's Corp | B19: Chart | C19: News | D19: 89.94 | E19: 89.94 | F19: 0 | G19: 0 | H19: 5520 | I19: unch | J19: 0 | K19: 91.22 | L19: 72.14 | M19: 92795777399 | N19: 4.95 | O19: 18.2 | P19: 1031752000
A20: Merck & Co Inc | B20: Chart | C20: News | D20: 32.98 | E20: 32.98 | F20: 0 | G20: 0 | H20: 900 | I20: unch | J20: 0 | K20: 37.68 | L20: 29.47 | M20: 101604683650 | N20: 1.38 | O20: 23.9 | P20: 3080797000
A21: Citigroup Inc | B21: Chart | C21: News | D21: 28.4 | E21: 28.4 | F21: 0 | G21: 0 | H21: 3703697 | I21: unch | J21: 0 | K21: 51.5 | L21: 21.4 | M21: 82869750487 | N21: 3.26 | O21: 8.6 | P21: 2917949000
A22: Microsoft Corp | B22: Chart | C22: News | D22: 27.27 | E22: 27.27 | F22: 0 | G22: 0 | H22: 16392 | I22: unch | J22: 0 | K22: 29.46 | L22: 23.65 | M22: 230136551543 | N22: 2.7 | O22: 10.1 | P22: 8439184000
A23: Bank of America Corp | B23: Chart | C23: News | D23: 6.19 | E23: 6.19 | F23: 0 | G23: 0 | H23: 3031790 | I23: unch | J23: 0 | K23: 15.31 | L23: 5.13 | M23: 62796003080 | N23: -1.65 | O23: 0 | P23: 10144750000
A24: Wal-Mart Stores Inc | B24: Chart | C24: News | D24: 55.46 | E24: 55.46 | F24: 0 | G24: 0 | H24: 900 | I24: unch | J24: 0 | K24: 57.9 | L24: 48.31 | M24: 191150484865 | N24: 4.7 | O24: 12.5 | P24: 3446637000
A25: Yahoo! Inc | B25: Chart | C25: News | D25: 15.91 | E25: 15.91 | F25: 0 | G25: 0 | H25: 121735 | I25: unch | J25: 0 | K25: 18.84 | L25: 11.09 | M25: 20088156727 | N25: 0.88 | O25: 18.1 | P25: 1262612000
A27: Symbol Lookup | C27: MSN Money Home | G27: Microsoft Office Tools on the Web
A28: Find stocks, mutual funds, options, indices, and currencies. | C28: Discover MSN Money's tools, columns, and more! | G28: Get the latest from Microsoft Office
A30: Terms of Use. © 2011 Microsoft Corporation and/or its suppliers. All rights reserved.

Sheet HW ==>>
A1: 3.1 | B1: ='3(1)'!A1&", "&'3(1)'!A2&", "&'3(1)'!A3&", "&'3(1)'!A4&", "&'3(1)'!A7&", "&'3(1)'!A8&", "&'3(1)'!A9 -> 13, 15, 21, 29, 35, 37, 39
A2: 3.2 | B2: ='3(2)'!A1&", "&'3(2)'!A8&", "&'3(2)'!A14&", "&'3(2)'!A32 -> 3, 11, 25, 31
A3: 3.3 | B3: ='3(3)'!A1&", "&'3(3)'!A15&", "&'3(3)'!A41 -> 11, 29, 31
A4: 3.4 | B4: ='3(4)'!A1&", "&'3(4)'!A11&", "&'3(4)'!A29 -> 13, 22, 25

Sheet 3(1)
A1: 13 | B1: 3.45 | C1: ==>> | D1: =B1 -> 3.45
A2: 15 | B2: 0.0308 | C2: ==>> | D2: 0.0308
A3: 21 | B3: =1/8 -> 0.125 | C3: ==>> | D3: =1/8 -> 0.125
A4: 29 | B4: =1+3/4 -> 1.75 | C4: ==>> | D4: =1+3/4 -> 1.75
B6: Fraction | D6: Decimal | F6: Percent | H6: check: | J6: 8 | K6: = | L6: 2*2*2 | M6: = | N6: 1
A7: 35 | B7: =1/125 -> 0.008 | C7: <<== | D7: 0.008 | E7: <<== | F7: 0.008 | H7: 0.008 | J7: 1000 | L7: 2*5*2*5*2*5 | N7: 125
A8: 37 | B8: =10+1/2 -> 10.5 | C8: ==>> | D8: =10+1/2 -> 10.5 | E8: ==>> | F8: 10.5
A9: 39 | B9: =13/20 -> 0.65 | C9: <<== | D9: 0.65 | E9: ==>> | F9: 0.65 | J9: 65 | K9: = | L9: 5*13 | M9: = | N9: 13 | P9: Check: | Q9: =5*13 -> 65
J10: 100 | L10: 2*5*2*5 | N10: 20

Sheet 3(2)
A1: 3 | B1: Round to nearest 100th (same as penny position)
B2: 75.5% of $800 = ?? | D2: Note: you can't type an equal sign in a cell unless you type a space before it or a use a lead apostrophe
B3: translates into:
B4: 0.755 | C4: * | D4: 800 | E4: = | F4: ??
B5: Rate | C5: * | D5: Base | E5: = | F5: Part
B6: Part = | C6: =ROUND(B4*D4,2) -> 604
A8: 11 | B8: 118% of 125.8 yards | D8: Note: you can't type an equal sign in a cell unless you type a space before it or a use a lead apostrophe
B9: translates into:
B10: 1.18 | C10: * | D10: 125.8 | E10: = | F10: ?? | G10: Unit = yards
B11: Rate | C11: * | D11: Base | E11: = | F11: Part
B12: Part = | C12: =ROUND(B10*D10,2) -> 148.44 | D12: Yards
A14: 25
A15: Step 1:
A16: Rate = | B16: % of auto accidents that are caused by Distracted Drivers (DD) | C16: 0.295
A17: Base = | B17: Total # of Drivers in Study | C17: 16450
A18: Part = | B18: Estimate of # of drivers in study that were in accident because of DD | C18: ??
A19: Goal: | B19: Estimate of # of drivers in study that were in accident because of DD
A20: Formula: P = B*R
A21: Requirement: round to nearest whole number
A22: Step 2: | D22: Check1: | F22: Check1:
A23: =A16 -> Rate = | B23: =C16 -> 0.295 | D23: =A23 -> Rate = | E23: =E25/E24 -> 0.295 | F23: =D23 -> Rate = | G23: =C16 -> 0.295
A24: Base = | B24: =C17 -> 16450 | D24: =A24 -> Base = | E24: =C17 -> 16450 | F24: Base = | G24: =G25/G23 -> 16450
A25: Part = | B25: =ROUND(B24*B23,0) -> 4853 | D25: =A25 -> Part = | E25: =B24*B23 -> 4852.75 | F25: Part = | G25: =E25 -> 4852.75
A26: Step 3:
A27: The estimate for the # of drivers in study that were in accidents because of Distracted Driving is 4,853.
A32: 31
A33: Step 1:
A34: Base = | B34: New products introduced last year | C34: 15401
A35: Rate | B35: % of products that failed to meet objective | C35: 0.86
A36: Part 1: | B36: # of products that failed to meet objective | C36: ??
A37: Part 2: | B37: # of products that DID NOT fail to meet objective | C37: ??
A38: Goal: | B38: calculate # of products that DID NOT fail | C38: Calculate the number of products that did reach their business objectives
A39: Formula 1: P = B*R
A40: Formula 2: 1 - Part 1 % = Part 2 %
A41: Requirement: Round to nearest whole number
A42: Step 2: | F42: Check1:
A43: =A34 -> Base = | B43: New products introduced last year | C43: 15401
A44: Rate | B44: % of products that failed to meet objective | C44: 0.86
A45: Rate 2 | B45: % of products that DID NOT fail to meet objective (meet objectives) | C45: =1-C44 -> 0.14
A46: =A36 -> Part 1: | B46: =B36 -> # of products that failed to meet objective | C46: =ROUND(C43*C44,0) -> 13245 | D46: Check1:
A47: =A37 -> Part 2: | B47: =B37 -> # of products that DID NOT fail to meet objective | C47: =ROUND(C43-C46,0) -> 2156 | D47: =ROUND(C43*C45,0) -> 2156
A49: Step 3:
A50: The number of products that did reach their business objectives was 2156.

Sheet 3(3)
A1: 11 | B1: Round to nearest 100th (same as penny position)
B2: 50 doors is .25% of 20,000 doors
B3: doors is unit
B4: 0.0025 | C4: ==> | D4: =B4 -> 0.0025 | E4: ==> | F4: =D4 -> 0.0025
B6: 50 | C6: is | D6: 0.0025 | E6: of | F6: ??
B7: 50 | C7: = | D7: =D6 -> 0.0025 | E7: * | F7: ??
B8: Part | C8: = | D8: Rate | E8: * | F8: Base
B9: Formula = B = P/R
B10: Rate | C10: 0.0025
B11: Part (Doors) = | C11: 50
B12: Base (Doors) = | C12: =ROUND(C11/C10,2) -> 20000
A15: 29
A16: Step 1:
A17: Part | B17: Monthly Loan PMT | C17: 1350
A18: Statement from problem:
A19: ="Requirement: "&B17&" NOT exceed "&TEXT(C27,"0.00%")&" of Buyer's monthly income" -> Requirement: Monthly Loan PMT NOT exceed 30.00% of Buyer's monthly income
A20: Exceed means BIGGER or MORE THAN
A21: So it can't be bigger - which means it must be smaller or equal 30% of buyer's monthly income
A22: Break it diown:
B23: =B17 -> Monthly Loan PMT | C23: <= | D23: 0.3 | E23: of | F23: buyer's monthly income
B24: =C17 -> 1350 | C24: =C23 -> <= | D24: =D23 -> 0.3 | E24: * | F24: =F23 -> buyer's monthly income
B25: Part | C25: <= | D25: Rate | E25: * | F25: Base
A26: So Base is what we are solving for
A27: Rate | B27: Upper Limit For % of monthly income | C27: 0.3
A28: Base | B28: Minimum buyer's monthly income
A29: Goal: Find Buyer's minimum monthly income
A30: Formula = B = P/R
A31: Requirement: it is money so must round to penny.
A32: Step 2:
A33: =A17 -> Part | B33: =B17 -> Monthly Loan PMT | C33: =C17 -> 1350 | E33: Check:
A34: =A27 -> Rate | B34: =B27 -> Upper Limit For % of monthly income | C34: =C27 -> 0.3 | E34: =B34 -> Upper Limit For % of monthly income | F34: =C34 -> 0.3
A35: =A28 -> Base | B35: =B28 -> Minimum buyer's monthly income | C35: =ROUND(C33/C34,2) -> 4500 | E35: =B35 -> Minimum buyer's monthly income | F35: =C35 -> 4500
E36: =B33 -> Monthly Loan PMT | F36: =ROUND(F35*F34,2) -> 1350
A38: Step 3:
A39: The minimum amount that the homebuyer must make each month is $4,500.
A41: 31
A42: Step 1:
A43: Rate 1 | B43: % spent on housing | C43: 0.28
A44: Rate 2 | B44: % spent on Food | C44: 0.15
A45: Rate 3 | B45: % spent on clothing | C45: 0.11
A46: Rate 4 | B46: % spent on transportation | C46: 0.15
A47: Rate 5 | B47: % spent on education | C47: 0.11
A48: Rate 6 | B48: % spent on recreation | C48: 0.07
A49: Rate 7 | B49: % spent on misc. | C49: 0.07
A50: Rate 8 | B50: % saved | C50: ??
A51: Part for Savings | B51: Savings per month | C51: 200
A52: Base | B52: Monthly Earnings | C52: ??
A53: Requirement: it is money so must round to penny.
A55: Step 2:
A56: =A43 -> Rate 1 | B56: % spent on housing | C56: 0.28
A57: Rate 2 | B57: % spent on Food | C57: 0.15
A58: Rate 3 | B58: % spent on clothing | C58: 0.11
A59: Rate 4 | B59: % spent on transportation | C59: 0.15
A60: Rate 5 | B60: % spent on education | C60: 0.11
A61: =A48 -> Rate 6 | B61: % spent on recreation | C61: 0.07
A62: =A49 -> Rate 7 | B62: % spent on misc. | C62: 0.07
A63: Total | B63: Total of 7 rates | C63: =SUM(C56:C62) -> 0.94
A64: =A50 -> Rate 8 | B64: =B50 -> % saved | C64: =1-C63 -> 0.06 | E64: Since sum of all 8 rates = 100% or 1, then 1 - 94% = Savings rate
A65: =A51 -> Part for Savings | B65: Savings per month | C65: 200
A66: Base | B66: Monthly Earnings | C66: =ROUND(C65/C64,2) -> 3333.33
B68: check: | C68: =ROUND(C66*C64,2) -> 200
A70: Step 3:
A71: The monthly earnings are $3,333.33, given that the sum of the expense % was 94% and savings per month were $200.00.

Sheet 3(4)
A1: 13 | B1: ??% of 600 acres is 7.5 acres?
B2: transalte:
B3: % * Base = Part
B4: Formula: P/B = R
A5: Rate | B5: =B7/B6 -> 0.0125 | C5: ==>> | D5: =B5 -> 0.0125 | E5: ==>> Rounded to tenth of a percent
A6: Base Acres | B6: 600 | D6: =ROUND(D5,3) -> 0.013 | E6: Because the number underneath 1.25% is .0125, you must use ROUND(1.25%, 3) or ROUND(.0125,3)
A7: Part Acres | B7: 7.5
A11: 22
A12: Step 1:
A13: Part | B13: # of workers laid off | C13: 80
A14: Base | B14: Total # of workers | C14: 760
A15: Rate | B15: Percent of workers laid off | C15: ??
A16: Goal: | B16: ="Find the "&B15 -> Find the Percent of workers laid off
A17: Formula: | B17: R = P/B
A18: Requirement: Round to tenth of a percent
A19: Step 2:
A20: =A13 -> Part | B20: =B13 -> # of workers laid off | C20: 80 | E20: Check:
A21: =A14 -> Base | B21: Total # of workers | C21: 760 | E21: =B21 -> Total # of workers | F21: =C21 -> 760
A22: Rate | B22: Percent of workers laid off | C22: =ROUND(C20/C21,3) -> 0.105 | E22: =B22 -> Percent of workers laid off | F22: 0.105
C23: R = P/B | E23: =B20 -> # of workers laid off | F23: =F21*F22 -> 79.8
F24: P = B/R
A26: Step 3:
A27: The percent of workers laid off was 10.5%
A29: 25
A30: Step 1:
A31: Part 1 | B31: Newspaper | C31: 2250
A32: Part 2 | B32: Radio | C32: 954
A33: Part 3 | B33: Outdoor | C33: 1950
A34: Part 4 | B34: TV | C34: 1425
A35: Part 5 | B35: Yellow Pages | C35: 1605
A36: Part 6 | B36: Misc. | C36: 2775
A37: Base | B37: Total Expenses | C37: ??
A38: Rate | B38: Radio Ad Expense as a % of the Total Ad Expenses | C38: ??
A39: Goal: | B39: ="Calculate "&B38 -> Calculate Radio Ad Expense as a % of the Total Ad Expenses
A40: Requirement: Round to tenth of a percent
A41: Step 2:
A42: =A31 -> Part 1 | B42: =B31 -> Newspaper | C42: 2250
A43: =A32 -> Part 2 | B43: Radio | C43: 954
A44: Part 3 | B44: Outdoor | C44: 1950
A45: Part 4 | B45: TV | C45: 1425
A46: Part 5 | B46: Yellow Pages | C46: 1605
A47: Part 6 | B47: Misc. | C47: 2775
A48: Base | B48: Total Expenses | C48: =SUM(C42:C47) -> 10959
A49: Rate | B49: Radio Ad Expense as a % of the Total Ad Expenses | C49: =ROUND(C43/C48,3) -> 0.087 | D49: =C49 -> 0.087
A51: Step 3:
A52: 8.7% of the total advertising expenses was spent of radio ads.

Sheet 3(5) (hidden)
A1: 3 | D1: Formula | E1: or | F1: Formula
A2: End = Part | B2: End = Part after increase | C2: 30.7 | I2: End = Part After Increase 30.7 | J2: Amount of Change | K2: Rate of Change (Increase) + 10% | L2: Rate = 100% + 10%
A3: AOC | B3: Amount of Change | C3: ??
A4: ROC | B4: Rate of Change (Increase) | C4: 0.1 | J4: Base | K4: Beg = Base = 100%
A5: Beg = Base | B5: Beg = Part Before increase | C5: ?? | D5: B = End P/R | E5: or | F5: Beg = AOC/ROC
A6: Rate | B6: Rate | C6: ?? | D6: R = End P/B | E6: or | F6: R = 100% + ROC | G6: End/Beg
A7: Requirement: Round To Cent
B9: =B6 -> Rate | C9: =C4+1 -> 1.1 | D9: =F6 -> R = 100% + ROC
A10: =A5 -> Beg = Base | B10: =B5 -> Beg = Part Before increase | C10: =ROUND(C2/C9,2) -> 27.91 | D10: =D5 -> B = End P/R
B11: Check | C11: =(C2-C10)/C4 -> 27.9 | D11: =F5 -> Beg = AOC/ROC | I11: End Part and Rate can be used in division
A14: 7
A15: End Part | B15: End Part after decrease | C15: 598.15 | D15: End | I15: Beg = Base | J15: Amount of Change | K15: Beg = Base = 100% | L15: Rate of Change (Decrease) -30%
A16: Rate | B16: Rate of Decrease | C16: -0.3
A17: Beg = Base | B17: Beg = Amount before decrease | D17: Beg | J17: End = Part after Decrease | L17: Rate = 100% -30%
A18: Requirement: Round To Cent
B20: Rate | C20: =1+C16 -> 0.7 | D20: =D9 -> R = 100% + ROC
A21: =A17 -> Beg = Base | B21: =B17 -> Beg = Amount before decrease | C21: =ROUND(C15/C20,2) -> 854.5 | D21: =D5 -> B = End P/R
B22: Check | C22: =(C21-C15)/-C16 -> 854.5 | D22: =F5 -> Beg = AOC/ROC
A24: 13
A25: Step 1: | J25: End Part and Rate can be used in division
A26: ROC | B26: Sales Tax Rate (Rate of change above sales) | C26: 0.08
A27: AOC | B27: Sales Tax Amount | C27: ?? | G27: End Part = Sales + Tax Total Amount = $1,026 | I27: Amount of Tax $ | J27: ROC = Tax Rate = 8% | K27: Rate = 100% + 8% = 108%
A28: Rate | B28: Rate = ROC + 1 | C28: =1+C26 -> 1.08 | D28: Sales % + Sales Tax %
A29: Beg = Base | B29: Sales Amount Before Tax | C29: ?? | D29: Formula = P/R | I29: Beg = Sales Amount | J29: Sales = 100%
A30: End = Part | B30: Sales Amount + Tax Amount | C30: 1026
A31: Goal 1: Find Sales Amount Before Tax, and Find the
A32: Goal 2: Find the Amount of Sales Tax
A33: Round to Penny because this is money
A35: Step 2:
A36: =A28 -> Rate | B36: =B28 -> Rate = ROC + 1 | C36: =C28 -> 1.08 | D36: Sales % + Sales Tax %
A37: =A30 -> End = Part | B37: =B30 -> Sales Amount + Tax Amount | C37: =C30 -> 1026 | G37: End Part and Rate can be used in division
A38: =A29 -> Beg = Base | B38: =B29 -> Sales Amount Before Tax | C38: =ROUND(C37/C36,2) -> 950 | D38: End P/R
A39: =A27 -> AOC | B39: Sales Tax Amount | C39: =ROUND(C37-C38,2) -> 76 | D39: subtract
A41: Check | B41: =B38 -> Sales Amount Before Tax | C41: =ROUND(C39/C26,2) -> 950 | D41: Beg = AOC/ROC
A42: Check | B42: =B39 -> Sales Tax Amount | C42: =ROUND(C38*C26,2) -> 76 | D42: Beg B*ROC
A44: Step 3:
A45: The amount of the original sales was $950 and the tax paid was $76.
A47: 25
A48: Step 1: | J48: Beg = Sales before drop | K48: AOC = Amount of drop | L48: ROC = -16%
A49: ROC | B49: % drop in earnings | C49: -0.16 | D49: enter as a negative
A50: End = Part | B50: Amount of earnings after drop | C50: 122 | D50: millions | K50: End Part = Sales at end = $122. M. | L50: Rate = 1 - 16% = 84%
A51: Rate | B51: Rate = 1 + -ROC | C51: =1+C49 -> 0.84 | D51: Number multiplied by Beg (original) to get end amount
A52: Goal: Find earnings before drop (beg amount)
A53: Round to the nearest ten-thousands - because in millions, use ROUND with a 2.
A55: Step 2:
A56: =A50 -> End = Part | B56: =B50 -> Amount of earnings after drop | C56: =C50 -> 122 | D56: millions
A57: =A51 -> Rate | B57: =B51 -> Rate = 1 + -ROC | C57: =C51 -> 0.84 | D57: Number multiplied by Beg (original) to get end amount | J57: End Part and Rate can be used in division
A58: Beg | B58: Find earnings before drop (beg amount) | C58: =ROUND(C56/C57,2) -> 145.24 | D58: End P/R
B59: Check | C59: =C58*C57 -> 122.0016 | D59: Beg B*R
A61: Step 3:
A62: The earnings before drop were $145.24 million.
